[Event "Titled Tuesday Blitz April 26 Early 2022"]
[White "Hnydiuk, Aleksander"]
[Black "Xu, Yi"]
[WhiteFideId "1109057"]
[BlackFideId "8605564"]
[WhiteElo "2374"]
[BlackElo "2471"]
[Result "1-0"]
[Round "05"]
[TimeControl "180+1"]
[Date "2022.04.26"]
[WhiteClock "0:01:00"]
[BlackClock "0:00:10"]

1. d4 {[%clk 0:03:00]}  Nf6 {[%clk 0:03:00]} 2. c4 {[%clk 0:03:01]}  e6 {[%clk 0:03:00]} 3. Nc3 {[%clk 0:03:01]}  Bb4 {[%clk 0:03:00]} 4. Qc2 {[%clk 0:03:01]}  d5 {[%clk 0:02:59]} 5. a3 {[%clk 0:03:02]}  Bxc3+ {[%clk 0:02:58]} 6. Qxc3 {[%clk 0:03:03]}  b6 {[%clk 0:02:55]} 7. Bg5 {[%clk 0:03:01]}  dxc4 {[%clk 0:02:54]} 8. e3 {[%clk 0:02:55]}  Bb7 {[%clk 0:02:47]} 9. Nf3 {[%clk 0:02:53]}  h6 {[%clk 0:02:45]} 10. Bh4 {[%clk 0:02:50]}  Nbd7 {[%clk 0:02:43]} 11. Bxc4 {[%clk 0:02:48]}  O-O {[%clk 0:02:39]} 12. O-O {[%clk 0:02:43]}  c5 {[%clk 0:02:16]} 13. dxc5 {[%clk 0:02:29]}  Nxc5 {[%clk 0:02:16]} 14. Rfd1 {[%clk 0:02:26]}  Qe7 {[%clk 0:02:16]} 15. Ne5 {[%clk 0:02:22]}  g5 {[%clk 0:02:09]} 16. Bg3 {[%clk 0:02:21]}  Nce4 {[%clk 0:02:08]} 17. Qb3 {[%clk 0:02:13]}  Rfd8 {[%clk 0:02:06]} 18. f3 {[%clk 0:01:57]}  Nxg3 {[%clk 0:02:03]} 19. hxg3 {[%clk 0:01:58]}  Qc5 {[%clk 0:01:47]} 20. Qc3 {[%clk 0:01:32]}  Nd5 {[%clk 0:01:34]} 21. Bxd5 {[%clk 0:01:23]}  Qxc3 {[%clk 0:01:34]} 22. bxc3 {[%clk 0:01:24]}  Bxd5 {[%clk 0:00:48]} 23. Rd4 {[%clk 0:01:21]}  f6 {[%clk 0:00:30]} 24. Ng4 {[%clk 0:01:21]}  Kg7 {[%clk 0:00:26]} 25. Rad1 {[%clk 0:01:13]}  Re8 {[%clk 0:00:25]} 26. e4 {[%clk 0:01:04]}  Bc6 {[%clk 0:00:25]} 27. Rd6 {[%clk 0:00:58]}  Rac8 {[%clk 0:00:14]} 28. e5 {[%clk 0:00:59]}  fxe5 {[%clk 0:00:10]} 29. Nxe5 {[%clk 0:01:00]} 1-0


[Site "https://www.chess.com"]

[Event "Titled Tuesday Blitz April 26 Early 2022"]
[White "Hoffmann, Asa"]
[Black "Dobre, Claudiu-Cristian"]
[WhiteFideId "2001470"]
[BlackFideId "1211854"]
[WhiteElo "2117"]
[BlackElo "2207"]
[Result "1-0"]
[Round "05"]
[TimeControl "180+1"]
[Date "2022.04.26"]
[WhiteClock "0:00:18"]
[BlackClock "0:00:01"]

1. d4 {[%clk 0:02:48]}  d5 {[%clk 0:02:58]} 2. Bg5 {[%clk 0:02:44]}  c6 {[%clk 0:02:52]} 3. e3 {[%clk 0:02:43]}  h6 {[%clk 0:02:41]} 4. Bh4 {[%clk 0:02:41]}  Qb6 {[%clk 0:02:41]} 5. b3 {[%clk 0:02:40]}  e5 {[%clk 0:02:41]} 6. Nf3 {[%clk 0:02:39]}  Bg4 {[%clk 0:02:36]} 7. dxe5 {[%clk 0:02:32]}  Bxf3 {[%clk 0:02:36]} 8. Qxf3 {[%clk 0:02:22]}  Qb4+ {[%clk 0:02:36]} 9. Nd2 {[%clk 0:02:16]}  Qxh4 {[%clk 0:02:36]} 10. c4 {[%clk 0:02:13]}  dxc4 {[%clk 0:02:30]} 11. Bxc4 {[%clk 0:02:09]}  Qe7 {[%clk 0:02:18]} 12. Ne4 {[%clk 0:01:57]}  Qb4+ {[%clk 0:01:48]} 13. Kf1 {[%clk 0:01:55]}  Nd7 {[%clk 0:00:47]} 14. Qxf7+ {[%clk 0:01:48]}  Kd8 {[%clk 0:00:47]} 15. Rd1 {[%clk 0:01:43]}  Qe7 {[%clk 0:00:47]} 16. Nd6 {[%clk 0:01:33]}  Nxe5 {[%clk 0:00:36]} 17. Nf5+ {[%clk 0:00:53]}  Kc7 {[%clk 0:00:34]} 18. Nxe7 {[%clk 0:00:45]}  Nxf7 {[%clk 0:00:34]} 19. Ng6 {[%clk 0:00:41]}  Ne7 {[%clk 0:00:16]} 20. Bxf7 {[%clk 0:00:38]}  Nxg6 {[%clk 0:00:16]} 21. Bxg6 {[%clk 0:00:38]}  Bc5 {[%clk 0:00:16]} 22. Ke2 {[%clk 0:00:38]}  Rad8 {[%clk 0:00:15]} 23. e4 {[%clk 0:00:37]}  Rxd1 {[%clk 0:00:12]} 24. Rxd1 {[%clk 0:00:36]}  Rf8 {[%clk 0:00:11]} 25. f3 {[%clk 0:00:35]}  Bd6 {[%clk 0:00:10]} 26. g3 {[%clk 0:00:35]}  Rf6 {[%clk 0:00:10]} 27. Bf5 {[%clk 0:00:34]}  g6 {[%clk 0:00:09]} 28. Bh3 {[%clk 0:00:32]}  g5 {[%clk 0:00:10]} 29. Bg2 {[%clk 0:00:31]}  Rf8 {[%clk 0:00:09]} 30. Rd3 {[%clk 0:00:28]}  Be5 {[%clk 0:00:09]} 31. Bf1 {[%clk 0:00:26]}  b5 {[%clk 0:00:08]} 32. Ke3 {[%clk 0:00:26]}  a5 {[%clk 0:00:08]} 33. Rd2 {[%clk 0:00:25]}  Rf7 {[%clk 0:00:06]} 34. Bd3 {[%clk 0:00:25]}  Bd6 {[%clk 0:00:06]} 35. Bc2 {[%clk 0:00:23]}  Be5 {[%clk 0:00:06]} 36. Rf2 {[%clk 0:00:22]}  Bd6 {[%clk 0:00:06]} 37. Rf1 {[%clk 0:00:22]}  c5 {[%clk 0:00:05]} 38. f4 {[%clk 0:00:22]}  c4 {[%clk 0:00:03]} 39. e5 {[%clk 0:00:22]}  Bxe5 {[%clk 0:00:03]} 40. bxc4 {[%clk 0:00:21]}  bxc4 {[%clk 0:00:03]} 41. Ke4 {[%clk 0:00:20]}  Bd6 {[%clk 0:00:03]} 42. f5 {[%clk 0:00:20]}  Re7+ {[%clk 0:00:02]} 43. Kd5 {[%clk 0:00:19]}  Be5 {[%clk 0:00:03]} 44. f6 {[%clk 0:00:19]}  Re8 {[%clk 0:00:01]} 45. f7 {[%clk 0:00:19]}  Rf8 {[%clk 0:00:01]} 46. Kxe5 {[%clk 0:00:18]} 1-0


[Site "https://www.chess.com"]

[Event "Titled Tuesday Blitz April 26 Early 2022"]
[White "Ianov, Viktor"]
[Black "Atakhan, Abtin"]
[WhiteFideId "14102730"]
[BlackFideId "22502203"]
[WhiteElo "2161"]
[BlackElo "2094"]
[Result "1-0"]
[Round "05"]
[TimeControl "180+1"]
[Date "2022.04.26"]
[WhiteClock "0:00:26"]
[BlackClock "0:00:04"]

1. Nf3 {[%clk 0:02:55]}  Nf6 {[%clk 0:02:59]} 2. g3 {[%clk 0:02:52]}  g6 {[%clk 0:03:00]} 3. b3 {[%clk 0:02:52]}  Bg7 {[%clk 0:03:00]} 4. Bb2 {[%clk 0:02:52]}  O-O {[%clk 0:03:00]} 5. Bg2 {[%clk 0:02:52]}  d5 {[%clk 0:02:59]} 6. c4 {[%clk 0:02:52]}  e6 {[%clk 0:02:57]} 7. O-O {[%clk 0:02:51]}  b6 {[%clk 0:02:58]} 8. d4 {[%clk 0:02:50]}  Bb7 {[%clk 0:02:58]} 9. Ne5 {[%clk 0:02:50]}  Nbd7 {[%clk 0:02:57]} 10. Nc3 {[%clk 0:02:50]}  a6 {[%clk 0:02:55]} 11. Rc1 {[%clk 0:02:48]}  Rc8 {[%clk 0:02:55]} 12. cxd5 {[%clk 0:02:48]}  exd5 {[%clk 0:02:55]} 13. Nd3 {[%clk 0:02:46]}  Re8 {[%clk 0:02:53]} 14. e3 {[%clk 0:02:45]}  Ne4 {[%clk 0:02:47]} 15. Nf4 {[%clk 0:02:43]}  Nxc3 {[%clk 0:02:39]} 16. Bxc3 {[%clk 0:02:42]}  Nf6 {[%clk 0:02:39]} 17. b4 {[%clk 0:02:40]}  Ne4 {[%clk 0:02:37]} 18. Qb3 {[%clk 0:02:39]}  Qd7 {[%clk 0:02:34]} 19. Rfd1 {[%clk 0:02:38]}  c6 {[%clk 0:02:18]} 20. Bb2 {[%clk 0:02:36]}  Nd6 {[%clk 0:02:15]} 21. Nd3 {[%clk 0:02:23]}  Nc4 {[%clk 0:02:13]} 22. a4 {[%clk 0:02:18]}  Re7 {[%clk 0:01:49]} 23. a5 {[%clk 0:02:17]}  b5 {[%clk 0:01:35]} 24. Nc5 {[%clk 0:02:16]}  Qe8 {[%clk 0:01:35]} 25. Bc3 {[%clk 0:02:12]}  Rd8 {[%clk 0:01:33]} 26. Qc2 {[%clk 0:02:08]}  Bc8 {[%clk 0:01:33]} 27. Bf1 {[%clk 0:02:00]}  Bh6 {[%clk 0:01:29]} 28. Re1 {[%clk 0:01:59]}  Rd6 {[%clk 0:01:10]} 29. Bd3 {[%clk 0:01:58]}  Bh3 {[%clk 0:01:08]} 30. Nxa6 {[%clk 0:01:53]}  Rf6 {[%clk 0:01:08]} 31. Nc5 {[%clk 0:01:51]}  Nxe3 {[%clk 0:00:56]} 32. fxe3 {[%clk 0:01:47]}  Rxe3 {[%clk 0:00:56]} 33. Bd2 {[%clk 0:01:33]}  Rxg3+ {[%clk 0:00:34]} 34. hxg3 {[%clk 0:01:29]}  Qb8 {[%clk 0:00:35]} 35. Kh2 {[%clk 0:00:57]}  Rf2+ {[%clk 0:00:34]} 36. Kxh3 {[%clk 0:00:57]}  Rxd2 {[%clk 0:00:27]} 37. Qb1 {[%clk 0:00:53]}  Qc8+ {[%clk 0:00:25]} 38. Bf5 {[%clk 0:00:53]}  gxf5 {[%clk 0:00:26]} 39. Re5 {[%clk 0:00:50]}  Rf2 {[%clk 0:00:15]} 40. Rce1 {[%clk 0:00:43]}  Kg7 {[%clk 0:00:11]} 41. Qd3 {[%clk 0:00:40]}  f6 {[%clk 0:00:06]} 42. Re7+ {[%clk 0:00:38]}  Kg6 {[%clk 0:00:06]} 43. Ne6 {[%clk 0:00:36]}  Qg8 {[%clk 0:00:03]} 44. Rf1 {[%clk 0:00:34]}  Kh5 {[%clk 0:00:03]} 45. Rxf2 {[%clk 0:00:27]}  Qg4+ {[%clk 0:00:04]} 46. Kg2 {[%clk 0:00:26]} 1-0


[Site "https://www.chess.com"]

[Event "Titled Tuesday Blitz April 26 Early 2022"]
[White "Itkis, Boris"]
[Black "Omariev, Maksim"]
[WhiteFideId "1209167"]
[BlackFideId "4193423"]
[WhiteElo "2207"]
[BlackElo "2493"]
[Result "0-1"]
[Round "05"]
[TimeControl "180+1"]
[Date "2022.04.26"]
[WhiteClock "0:00:07"]
[BlackClock "0:01:23"]

1. b3 {[%clk 0:03:00]}  e5 {[%clk 0:02:59]} 2. Bb2 {[%clk 0:03:01]}  Nc6 {[%clk 0:02:59]} 3. Nf3 {[%clk 0:03:01]}  e4 {[%clk 0:02:58]} 4. Nd4 {[%clk 0:03:01]}  Nxd4 {[%clk 0:02:56]} 5. Bxd4 {[%clk 0:03:02]}  d5 {[%clk 0:02:55]} 6. e3 {[%clk 0:03:00]}  Nf6 {[%clk 0:02:55]} 7. Bb2 {[%clk 0:02:57]}  Bd6 {[%clk 0:02:53]} 8. c4 {[%clk 0:02:57]}  O-O {[%clk 0:02:51]} 9. Nc3 {[%clk 0:02:57]}  c6 {[%clk 0:02:48]} 10. Be2 {[%clk 0:02:53]}  Be6 {[%clk 0:02:45]} 11. O-O {[%clk 0:02:28]}  a6 {[%clk 0:02:44]} 12. d4 {[%clk 0:02:22]}  Rc8 {[%clk 0:02:42]} 13. Rc1 {[%clk 0:02:19]}  Bb8 {[%clk 0:02:37]} 14. cxd5 {[%clk 0:02:13]}  Bxd5 {[%clk 0:02:19]} 15. g3 {[%clk 0:02:06]}  Re8 {[%clk 0:02:17]} 16. Bc4 {[%clk 0:01:57]}  h5 {[%clk 0:01:49]} 17. Bxd5 {[%clk 0:01:39]}  cxd5 {[%clk 0:01:50]} 18. Ne2 {[%clk 0:01:38]}  h4 {[%clk 0:01:48]} 19. Nf4 {[%clk 0:01:31]}  Qd7 {[%clk 0:01:46]} 20. Nh5 {[%clk 0:01:12]}  Nh7 {[%clk 0:01:35]} 21. Qe2 {[%clk 0:00:56]}  Ng5 {[%clk 0:01:28]} 22. Rxc8 {[%clk 0:00:14]}  Rxc8 {[%clk 0:01:29]} 23. Rc1 {[%clk 0:00:14]}  Rxc1+ {[%clk 0:01:25]} 24. Bxc1 {[%clk 0:00:15]}  Qh3 {[%clk 0:01:26]} 25. Qf1 {[%clk 0:00:11]}  Nf3+ {[%clk 0:01:26]} 26. Kh1 {[%clk 0:00:07]}  Qxf1# {[%clk 0:01:23]} 0-1


[Site "https://www.chess.com"]

[Event "Titled Tuesday Blitz April 26 Early 2022"]
[White "Jaskolka, Tomasz"]
[Black "Pesotskiy, Mikhail"]
[WhiteFideId "1170791"]
[BlackFideId "34164453"]
[WhiteElo "2073"]
[BlackElo "2010"]
[Result "1-0"]
[Round "05"]
[TimeControl "180+1"]
[Date "2022.04.26"]
[WhiteClock "0:00:32"]
[BlackClock "0:00:15"]

1. d4 {[%clk 0:03:00]}  Nf6 {[%clk 0:03:00]} 2. Bf4 {[%clk 0:03:01]}  e6 {[%clk 0:02:56]} 3. e3 {[%clk 0:03:01]}  c5 {[%clk 0:02:57]} 4. c3 {[%clk 0:03:01]}  Nc6 {[%clk 0:02:56]} 5. Nd2 {[%clk 0:03:01]}  b6 {[%clk 0:02:56]} 6. Ngf3 {[%clk 0:03:00]}  Bb7 {[%clk 0:02:56]} 7. Bd3 {[%clk 0:03:01]}  Be7 {[%clk 0:02:54]} 8. Qe2 {[%clk 0:02:58]}  Nh5 {[%clk 0:02:54]} 9. Bg3 {[%clk 0:02:56]}  d5 {[%clk 0:02:49]} 10. O-O-O {[%clk 0:02:48]}  Qd7 {[%clk 0:02:44]} 11. Bb5 {[%clk 0:02:38]}  Nxg3 {[%clk 0:02:30]} 12. hxg3 {[%clk 0:02:36]}  Bf6 {[%clk 0:02:09]} 13. dxc5 {[%clk 0:01:56]}  bxc5 {[%clk 0:02:10]} 14. Ne4 {[%clk 0:01:55]}  Be7 {[%clk 0:01:56]} 15. Neg5 {[%clk 0:01:12]}  Bxg5 {[%clk 0:01:39]} 16. Nxg5 {[%clk 0:01:12]}  a6 {[%clk 0:01:19]} 17. Ba4 {[%clk 0:01:00]}  f6 {[%clk 0:01:09]} 18. Qh5+ {[%clk 0:00:39]}  g6 {[%clk 0:01:09]} 19. Qxg6+ {[%clk 0:00:39]}  hxg6 {[%clk 0:01:08]} 20. Rxh8+ {[%clk 0:00:39]}  Ke7 {[%clk 0:01:08]} 21. Rh7+ {[%clk 0:00:39]}  Kd6 {[%clk 0:00:32]} 22. Ne4+ {[%clk 0:00:38]}  Kc7 {[%clk 0:00:23]} 23. Rxd7+ {[%clk 0:00:38]}  Kxd7 {[%clk 0:00:24]} 24. Nxc5+ {[%clk 0:00:38]}  Kc8 {[%clk 0:00:20]} 25. Nxe6 {[%clk 0:00:37]}  Ne7 {[%clk 0:00:21]} 26. Nc5 {[%clk 0:00:33]}  Kc7 {[%clk 0:00:21]} 27. Nxb7 {[%clk 0:00:32]}  Kxb7 {[%clk 0:00:22]} 28. e4 {[%clk 0:00:33]}  Rd8 {[%clk 0:00:17]} 29. exd5 {[%clk 0:00:33]}  Rxd5 {[%clk 0:00:17]} 30. Rxd5 {[%clk 0:00:33]}  Nxd5 {[%clk 0:00:14]} 31. Bc2 {[%clk 0:00:32]}  g5 {[%clk 0:00:14]} 32. Be4 {[%clk 0:00:32]}  Kc6 {[%clk 0:00:15]} 33. c4 {[%clk 0:00:32]} 1-0


[Site "https://www.chess.com"]

[Event "Titled Tuesday Blitz April 26 Early 2022"]
[White "Johnson, Ben"]
[Black "Avazkhonov, Alikhon"]
[WhiteFideId "2010917"]
[BlackFideId "14208504"]
[WhiteElo "2174"]
[BlackElo "1739"]
[Result "1-0"]
[Round "05"]
[TimeControl "180+1"]
[Date "2022.04.26"]
[WhiteClock "0:00:18"]
[BlackClock "0:00:02"]

1. Nf3 {[%clk 0:03:00]}  d5 {[%clk 0:02:56]} 2. e3 {[%clk 0:03:00]}  c6 {[%clk 0:02:49]} 3. c4 {[%clk 0:02:58]}  e6 {[%clk 0:02:46]} 4. b3 {[%clk 0:02:56]}  Nf6 {[%clk 0:02:44]} 5. Bb2 {[%clk 0:02:57]}  Bd6 {[%clk 0:02:43]} 6. Nc3 {[%clk 0:02:46]}  O-O {[%clk 0:02:43]} 7. Qc2 {[%clk 0:02:38]}  Nbd7 {[%clk 0:02:42]} 8. d4 {[%clk 0:02:37]}  Qe7 {[%clk 0:02:37]} 9. Bd3 {[%clk 0:02:29]}  dxc4 {[%clk 0:02:37]} 10. bxc4 {[%clk 0:02:27]}  e5 {[%clk 0:02:37]} 11. O-O {[%clk 0:02:23]}  Re8 {[%clk 0:02:33]} 12. Ne4 {[%clk 0:02:09]}  Nxe4 {[%clk 0:02:16]} 13. Bxe4 {[%clk 0:02:10]}  g6 {[%clk 0:02:16]} 14. dxe5 {[%clk 0:01:59]}  Nxe5 {[%clk 0:02:17]} 15. Nxe5 {[%clk 0:01:58]}  Bxe5 {[%clk 0:02:18]} 16. Bxe5 {[%clk 0:01:55]}  Qxe5 {[%clk 0:02:19]} 17. Bf3 {[%clk 0:01:51]}  Bf5 {[%clk 0:02:19]} 18. Qb3 {[%clk 0:01:51]}  Qc7 {[%clk 0:02:09]} 19. c5 {[%clk 0:01:49]}  Rad8 {[%clk 0:02:08]} 20. Rfd1 {[%clk 0:01:46]}  Rxd1+ {[%clk 0:02:06]} 21. Rxd1 {[%clk 0:01:47]}  h5 {[%clk 0:01:14]} 22. Qa4 {[%clk 0:01:47]}  a6 {[%clk 0:01:11]} 23. Qd4 {[%clk 0:01:47]}  Qa5 {[%clk 0:00:51]} 24. a4 {[%clk 0:01:28]}  Bc2 {[%clk 0:00:46]} 25. Qd7 {[%clk 0:00:49]}  Rf8 {[%clk 0:00:42]} 26. Rc1 {[%clk 0:00:45]}  Bxa4 {[%clk 0:00:14]} 27. Qxb7 {[%clk 0:00:45]}  Qb5 {[%clk 0:00:11]} 28. Qd7 {[%clk 0:00:40]}  Qb2 {[%clk 0:00:07]} 29. Rf1 {[%clk 0:00:33]}  Bb5 {[%clk 0:00:06]} 30. Rd1 {[%clk 0:00:31]}  Ba4 {[%clk 0:00:05]} 31. Qd2 {[%clk 0:00:24]}  Qxd2 {[%clk 0:00:03]} 32. Rxd2 {[%clk 0:00:25]}  Rb8 {[%clk 0:00:02]} 33. g3 {[%clk 0:00:24]}  Rb1+ {[%clk 0:00:02]} 34. Kg2 {[%clk 0:00:24]}  Bb5 {[%clk 0:00:03]} 35. Rd6 {[%clk 0:00:23]}  Bf1+ {[%clk 0:00:03]} 36. Kg1 {[%clk 0:00:21]}  Bh3+ {[%clk 0:00:04]} 37. Rd1 {[%clk 0:00:19]}  Rxd1+ {[%clk 0:00:04]} 38. Bxd1 {[%clk 0:00:19]}  Be6 {[%clk 0:00:03]} 39. Bf3 {[%clk 0:00:17]}  Bd7 {[%clk 0:00:02]} 40. Kf1 {[%clk 0:00:16]}  a5 {[%clk 0:00:03]} 41. Ke2 {[%clk 0:00:17]}  a4 {[%clk 0:00:02]} 42. Kd3 {[%clk 0:00:17]}  Kf8 {[%clk 0:00:02]} 43. Kc3 {[%clk 0:00:17]}  Ke7 {[%clk 0:00:01]} 44. Kb4 {[%clk 0:00:17]}  Ke6 {[%clk 0:00:02]} 45. Kxa4 {[%clk 0:00:18]}  Ke5 {[%clk 0:00:02]} 46. Ka5 {[%clk 0:00:18]}  f5 {[%clk 0:00:02]} 47. Kb6 {[%clk 0:00:18]} 1-0


[Site "https://www.chess.com"]

[Event "Titled Tuesday Blitz April 26 Early 2022"]
[White "Jones, Daniel"]
[Black "Winkels, Marcel"]
[WhiteFideId "2019655"]
[BlackFideId "1003887"]
[WhiteElo "2313"]
[BlackElo "1900"]
[Result "0-1"]
[Round "05"]
[TimeControl "180+1"]
[Date "2022.04.26"]
[WhiteClock "0:00:18"]
[BlackClock "0:00:16"]

1. e4 {[%clk 0:02:57]}  c5 {[%clk 0:02:58]} 2. d4 {[%clk 0:02:49]}  cxd4 {[%clk 0:02:55]} 3. c3 {[%clk 0:02:49]}  d5 {[%clk 0:02:54]} 4. e5 {[%clk 0:02:48]}  dxc3 {[%clk 0:02:49]} 5. Nxc3 {[%clk 0:02:48]}  Nc6 {[%clk 0:02:48]} 6. f4 {[%clk 0:02:48]}  e6 {[%clk 0:02:40]} 7. Nf3 {[%clk 0:02:39]}  Nh6 {[%clk 0:02:38]} 8. Bd3 {[%clk 0:02:28]}  Bc5 {[%clk 0:02:33]} 9. Qe2 {[%clk 0:02:16]}  O-O {[%clk 0:02:24]} 10. Ng5 {[%clk 0:01:40]}  Nf5 {[%clk 0:02:21]} 11. Qh5 {[%clk 0:01:36]}  h6 {[%clk 0:02:20]} 12. g4 {[%clk 0:01:35]}  Nfd4 {[%clk 0:02:02]} 13. h4 {[%clk 0:01:00]}  f5 {[%clk 0:01:59]} 14. exf6 {[%clk 0:00:37]}  Rxf6 {[%clk 0:01:48]} 15. Be3 {[%clk 0:00:34]}  Bd7 {[%clk 0:01:47]} 16. O-O-O {[%clk 0:00:31]}  Be8 {[%clk 0:01:44]} 17. Bh7+ {[%clk 0:00:22]}  Kh8 {[%clk 0:01:42]} 18. Bxd4 {[%clk 0:00:20]}  Bxh5 {[%clk 0:01:24]} 19. Bxc5 {[%clk 0:00:11]}  hxg5 {[%clk 0:01:16]} 20. hxg5 {[%clk 0:00:11]}  Bxg4 {[%clk 0:00:58]} 21. Bg6+ {[%clk 0:00:10]}  Kg8 {[%clk 0:00:55]} 22. Bh7+ {[%clk 0:00:09]}  Kf7 {[%clk 0:00:52]} 23. gxf6 {[%clk 0:00:09]}  Qxf6 {[%clk 0:00:51]} 24. Rdg1 {[%clk 0:00:09]}  Bf5 {[%clk 0:00:36]} 25. Bxf5 {[%clk 0:00:08]}  Qxf5 {[%clk 0:00:35]} 26. Bd6 {[%clk 0:00:09]}  Nd4 {[%clk 0:00:32]} 27. Kd2 {[%clk 0:00:07]}  Nf3+ {[%clk 0:00:30]} 28. Ke3 {[%clk 0:00:08]}  Nxg1 {[%clk 0:00:30]} 29. Rxg1 {[%clk 0:00:09]}  d4+ {[%clk 0:00:27]} 30. Kxd4 {[%clk 0:00:08]}  Rd8 {[%clk 0:00:28]} 31. Ne4 {[%clk 0:00:07]}  Kg8 {[%clk 0:00:23]} 32. Ke3 {[%clk 0:00:06]}  Rxd6 {[%clk 0:00:21]} 33. Nxd6 {[%clk 0:00:06]}  Qc5+ {[%clk 0:00:21]} 34. Kf3 {[%clk 0:00:06]}  Qxg1 {[%clk 0:00:21]} 35. Ne4 {[%clk 0:00:06]}  Qb1 {[%clk 0:00:19]} 36. Ke3 {[%clk 0:00:07]}  Qxb2 {[%clk 0:00:18]} 37. Nd2 {[%clk 0:00:08]}  Qxa2 {[%clk 0:00:19]} 38. Nf3 {[%clk 0:00:09]}  Qb3+ {[%clk 0:00:18]} 39. Ke4 {[%clk 0:00:10]}  Qc4+ {[%clk 0:00:17]} 40. Nd4 {[%clk 0:00:10]}  a5 {[%clk 0:00:17]} 41. Ke3 {[%clk 0:00:11]}  a4 {[%clk 0:00:16]} 42. Ne2 {[%clk 0:00:11]}  a3 {[%clk 0:00:16]} 43. Nd4 {[%clk 0:00:12]}  a2 {[%clk 0:00:16]} 44. f5 {[%clk 0:00:13]}  a1=Q {[%clk 0:00:15]} 45. Nxe6 {[%clk 0:00:13]}  Qxe6+ {[%clk 0:00:15]} 46. fxe6 {[%clk 0:00:13]}  Qe5+ {[%clk 0:00:15]} 47. Kd3 {[%clk 0:00:14]}  Qxe6 {[%clk 0:00:15]} 48. Kd4 {[%clk 0:00:14]}  g5 {[%clk 0:00:14]} 49. Kc5 {[%clk 0:00:14]}  g4 {[%clk 0:00:15]} 50. Kd4 {[%clk 0:00:15]}  g3 {[%clk 0:00:15]} 51. Kd3 {[%clk 0:00:16]}  g2 {[%clk 0:00:16]} 52. Kc3 {[%clk 0:00:17]}  g1=Q {[%clk 0:00:16]} 53. Kd3 {[%clk 0:00:17]}  Qgb6 {[%clk 0:00:14]} 54. Kc3 {[%clk 0:00:17]}  Qbc6+ {[%clk 0:00:14]} 55. Kd4 {[%clk 0:00:17]}  Qcd5+ {[%clk 0:00:14]} 56. Kc3 {[%clk 0:00:18]}  Qec6+ {[%clk 0:00:15]} 57. Kb4 {[%clk 0:00:18]}  Qdb5+ {[%clk 0:00:15]} 58. Ka3 {[%clk 0:00:18]}  Qca6# {[%clk 0:00:16]} 0-1


[Site "https://www.chess.com"]

[Event "Titled Tuesday Blitz April 26 Early 2022"]
[White "Kaminski, Victor"]
[Black "Ambartsumova, Karina"]
[WhiteFideId "1131630"]
[BlackFideId "4166299"]
[WhiteElo "2181"]
[BlackElo "2262"]
[Result "0-1"]
[Round "05"]
[TimeControl "180+1"]
[Date "2022.04.26"]
[WhiteClock "0:00:02"]
[BlackClock "0:00:19"]

1. e4 {[%clk 0:02:56]}  e5 {[%clk 0:02:56]} 2. Nf3 {[%clk 0:02:56]}  Nc6 {[%clk 0:02:56]} 3. Bb5 {[%clk 0:02:55]}  a6 {[%clk 0:02:56]} 4. Ba4 {[%clk 0:02:55]}  Nf6 {[%clk 0:02:56]} 5. O-O {[%clk 0:02:55]}  Be7 {[%clk 0:02:57]} 6. d3 {[%clk 0:02:55]}  d6 {[%clk 0:02:53]} 7. c3 {[%clk 0:02:54]}  O-O {[%clk 0:02:52]} 8. Nbd2 {[%clk 0:02:53]}  b5 {[%clk 0:02:50]} 9. Bc2 {[%clk 0:02:52]}  Re8 {[%clk 0:02:50]} 10. Re1 {[%clk 0:02:51]}  Bf8 {[%clk 0:02:51]} 11. Nf1 {[%clk 0:02:51]}  h6 {[%clk 0:02:51]} 12. Ng3 {[%clk 0:02:50]}  g6 {[%clk 0:02:29]} 13. d4 {[%clk 0:02:32]}  Bg7 {[%clk 0:02:25]} 14. d5 {[%clk 0:02:30]}  Ne7 {[%clk 0:02:20]} 15. a4 {[%clk 0:02:25]}  Bb7 {[%clk 0:02:17]} 16. Qe2 {[%clk 0:02:14]}  c6 {[%clk 0:02:16]} 17. dxc6 {[%clk 0:02:10]}  Bxc6 {[%clk 0:02:17]} 18. Rd1 {[%clk 0:02:08]}  Qc7 {[%clk 0:02:15]} 19. h4 {[%clk 0:01:52]}  h5 {[%clk 0:01:59]} 20. Bg5 {[%clk 0:01:46]}  Rad8 {[%clk 0:01:34]} 21. Nd2 {[%clk 0:01:00]}  d5 {[%clk 0:01:18]} 22. Qf3 {[%clk 0:00:44]}  Ng4 {[%clk 0:01:03]} 23. axb5 {[%clk 0:00:30]}  axb5 {[%clk 0:01:01]} 24. exd5 {[%clk 0:00:19]}  Bxd5 {[%clk 0:01:02]} 25. Be4 {[%clk 0:00:17]}  Be6 {[%clk 0:00:56]} 26. Ngf1 {[%clk 0:00:06]}  f6 {[%clk 0:00:55]} 27. Be3 {[%clk 0:00:04]}  f5 {[%clk 0:00:55]} 28. Bc2 {[%clk 0:00:03]}  e4 {[%clk 0:00:39]} 29. Qe2 {[%clk 0:00:03]}  Nd5 {[%clk 0:00:28]} 30. Ra7 {[%clk 0:00:02]}  Qb8 {[%clk 0:00:25]} 31. Rxg7+ {[%clk 0:00:02]}  Kxg7 {[%clk 0:00:26]} 32. Bd4+ {[%clk 0:00:03]}  Kh7 {[%clk 0:00:25]} 33. f3 {[%clk 0:00:04]}  Nf4 {[%clk 0:00:22]} 34. Qe1 {[%clk 0:00:03]}  exf3 {[%clk 0:00:22]} 35. Nxf3 {[%clk 0:00:03]}  Bc4 {[%clk 0:00:20]} 36. Ng5+ {[%clk 0:00:04]}  Kg8 {[%clk 0:00:19]} 37. Qg3 {[%clk 0:00:04]}  Ne2+ {[%clk 0:00:18]} 38. Kh1 {[%clk 0:00:02]}  Nxg3+ {[%clk 0:00:19]} 39. Nxg3 {[%clk 0:00:02]}  Qxg3 {[%clk 0:00:19]} 0-1


[Site "https://www.chess.com"]

[Event "Titled Tuesday Blitz April 26 Early 2022"]
[White "Kim, Sergey"]
[Black "Stelmaszyk, Nico"]
[WhiteFideId "13700570"]
[BlackFideId "16200462"]
[WhiteElo "2552"]
[BlackElo "2119"]
[Result "0-1"]
[Round "05"]
[TimeControl "180+1"]
[Date "2022.04.26"]
[WhiteClock "0:01:25"]
[BlackClock "0:01:21"]

1. d4 {[%clk 0:03:00]}  d5 {[%clk 0:02:54]} 2. c4 {[%clk 0:03:01]}  c6 {[%clk 0:02:52]} 3. Nf3 {[%clk 0:03:00]}  Nf6 {[%clk 0:02:51]} 4. e3 {[%clk 0:03:00]}  Bg4 {[%clk 0:02:44]} 5. Nbd2 {[%clk 0:02:58]}  e6 {[%clk 0:02:39]} 6. Be2 {[%clk 0:02:58]}  Be7 {[%clk 0:02:36]} 7. O-O {[%clk 0:02:58]}  O-O {[%clk 0:02:29]} 8. b3 {[%clk 0:02:59]}  Nbd7 {[%clk 0:02:28]} 9. Bb2 {[%clk 0:02:59]}  Re8 {[%clk 0:02:25]} 10. h3 {[%clk 0:02:56]}  Bxf3 {[%clk 0:02:24]} 11. Nxf3 {[%clk 0:02:55]}  Ne4 {[%clk 0:02:24]} 12. a3 {[%clk 0:02:54]}  Bf6 {[%clk 0:02:21]} 13. Ne5 {[%clk 0:02:51]}  Bxe5 {[%clk 0:02:18]} 14. dxe5 {[%clk 0:02:51]}  Qc7 {[%clk 0:02:16]} 15. f4 {[%clk 0:02:38]}  Ng3 {[%clk 0:02:08]} 16. Rf3 {[%clk 0:02:38]}  Nxe2+ {[%clk 0:02:08]} 17. Qxe2 {[%clk 0:02:38]}  dxc4 {[%clk 0:02:07]} 18. Qxc4 {[%clk 0:02:34]}  Nb6 {[%clk 0:02:04]} 19. Qe2 {[%clk 0:02:26]}  Rad8 {[%clk 0:01:57]} 20. Rg3 {[%clk 0:02:24]}  Qd7 {[%clk 0:01:49]} 21. Bd4 {[%clk 0:02:22]}  Nd5 {[%clk 0:01:44]} 22. Qg4 {[%clk 0:02:15]}  g6 {[%clk 0:01:44]} 23. Kh2 {[%clk 0:02:02]}  b6 {[%clk 0:01:36]} 24. b4 {[%clk 0:02:02]}  Ne7 {[%clk 0:01:36]} 25. Rf3 {[%clk 0:01:38]}  Nf5 {[%clk 0:01:34]} 26. Bc3 {[%clk 0:01:38]}  Qd3 {[%clk 0:01:30]} 27. Re1 {[%clk 0:01:36]}  Qxc3 {[%clk 0:01:27]} 28. Rff1 {[%clk 0:01:32]}  Nxe3 {[%clk 0:01:23]} 29. Qh4 {[%clk 0:01:25]}  Nxf1+ {[%clk 0:01:21]} 0-1


[Site "https://www.chess.com"]